bitfinex-derivatives/quotes_BTCF0:USTF0_20260104
["timestamp","ask_amount","ask_price","bid_price","bid_amount"]
[1767522520355,0.010927,91555.0,91544.0,0.09288]
[1767522520554,0.02390526,91554.0,91544.0,0.09288]
[1767522520853,0.02390526,91553.0,91543.0,0.010928]
[1767522521054,0.010927,91555.0,91544.0,0.09288]
[1767522521256,0.02390527,91554.0,91544.0,0.09288]
[1767522521558,0.02390527,91553.0,91544.0,0.09288]
[1767522521758,0.010927,91555.0,91544.0,0.09288]
[1767522521959,0.02390518,91554.0,91544.0,0.09288]
[1767522522262,0.02390518,91553.0,91544.0,0.09288]
[1767522522462,0.010927,91555.0,91544.0,0.09288]
[1767522522665,0.02390516,91554.0,91544.0,0.09288]
[1767522522863,0.02390516,91553.0,91544.0,0.09288]
[1767522523064,0.00016356,91556.0,91544.0,0.09288]
[1767522523264,0.02390515,91555.0,91544.0,0.09288]
[1767522523454,0.02390515,91554.0,91544.0,0.09288]
[1767522523754,0.02390515,91553.0,91544.0,0.09288]
[1767522523954,0.01109056,91556.0,91544.0,0.09288]
[1767522524165,0.02390542,91555.0,91544.0,0.09288]
[1767522524463,0.02390542,91554.0,91544.0,0.09288]
[1767522524665,0.02390542,91553.0,91544.0,0.09288]
[1767522524865,0.01109056,91556.0,91544.0,0.09288]
[1767522525054,0.02390576,91555.0,91544.0,0.09288]
[1767522525255,0.02390576,91554.0,91544.0,0.09288]
[1767522525454,0.02390576,91553.0,91544.0,0.09288]
[1767522525661,0.00016356,91556.0,91545.0,0.09288]
[1767522525862,0.03483305,91555.0,91545.0,0.09288]
[1767522526062,0.02390605,91554.0,91545.0,0.09288]
[1767522526260,0.02390605,91553.0,91545.0,0.09288]
[1767522526462,0.02390605,91552.0,91545.0,0.09288]
[1767522526762,0.010927,91555.0,91545.0,0.09288]
[1767522526965,0.02390632,91554.0,91545.0,0.09288]
[1767522527169,0.02390632,91553.0,91545.0,0.09288]
[1767522527360,0.02390632,91552.0,91545.0,0.09288]
[1767522527664,0.010927,91555.0,91545.0,0.09288]
[1767522527965,0.02390666,91554.0,91545.0,0.09288]
[1767522528262,0.02390666,91553.0,91545.0,0.09288]
[1767522528465,0.02390666,91552.0,91545.0,0.09288]
[1767522528663,0.010927,91555.0,91545.0,0.09288]
[1767522528862,0.02390703,91554.0,91545.0,0.09288]
[1767522529063,0.02390703,91553.0,91545.0,0.09288]
[1767522529263,0.02390703,91552.0,91545.0,0.09288]
[1767522529460,0.010927,91555.0,91545.0,0.09288]
[1767522529666,0.02390745,91554.0,91545.0,0.09288]
[1767522529866,0.02390745,91553.0,91545.0,0.09288]
[1767522530166,0.02390745,91552.0,91545.0,0.09288]
[1767522530469,0.00016356,91556.0,91545.0,0.09288]
[1767522530667,0.02390797,91555.0,91545.0,0.09288]
[1767522530964,0.02390797,91554.0,91545.0,0.09288]
[1767522531168,0.02390797,91553.0,91545.0,0.09288]
[1767522531367,0.02390797,91552.0,91545.0,0.09288]
[1767522531570,0.00016356,91556.0,91545.0,0.09288]
[1767522531871,0.02390861,91555.0,91545.0,0.09288]
[1767522532068,0.02390861,91554.0,91545.0,0.09288]
[1767522532269,0.02390861,91553.0,91545.0,0.09288]
[1767522532470,0.02390861,91552.0,91545.0,0.09288]
[1767522532771,0.00016356,91556.0,91545.0,0.09288]
[1767522532969,0.02389452,91555.0,91545.0,0.09288]
[1767522533168,0.02389452,91554.0,91545.0,0.09288]
[1767522533370,0.02389452,91553.0,91545.0,0.09288]
[1767522533568,0.02389452,91552.0,91545.0,0.09288]
[1767522533870,0.01109056,91556.0,91545.0,0.09288]
[1767522534069,0.02389561,91555.0,91545.0,0.09288]
[1767522534263,0.02389561,91554.0,91545.0,0.09288]
[1767522534464,0.02389561,91553.0,91545.0,0.09288]
[1767522534675,0.02389561,91552.0,91545.0,0.09288]
[1767522534862,0.01109056,91556.0,91545.0,0.09288]
[1767522535064,0.02389769,91555.0,91545.0,0.09288]
[1767522535271,0.03482469,91554.0,91545.0,0.09288]
[1767522535472,0.02389769,91553.0,91545.0,0.09288]
[1767522535759,0.02389769,91552.0,91545.0,0.09288]
[1767522535959,0.02389769,91551.0,91545.0,0.09288]
[1767522536162,0.02389769,91550.0,91545.0,0.09288]
[1767522536365,0.02389769,91549.0,91545.0,0.09288]
[1767522536566,0.010927,91554.0,91545.0,0.09288]
[1767522536870,0.00016356,91556.0,91545.0,0.09288]
[1767522537063,0.01455435,91563.0,91545.0,0.09288]
[1767522537268,0.010926,91562.0,91545.0,0.09288]
[1767522538275,0.010927,91555.0,91545.0,0.09288]
[1767522541176,0.010927,91554.0,91545.0,0.09288]
[1767522541372,0.01337238,91559.0,91543.0,0.94512]
[1767522541571,0.010928,91546.0,91538.0,0.00016387]
[1767522541766,0.010928,91546.0,91539.0,0.09288]
[1767522541962,0.01337238,91554.0,91538.0,8.7e-07]
[1767522541963,0.010929,91540.0,91538.0,8.7e-07]
[1767522542174,0.010929,91536.0,91531.0,0.09288]
[1767522542675,0.010929,91539.0,91522.0,0.0143684]
[1767522542875,0.010929,91533.0,91530.0,0.09288]
[1767522543079,0.010929,91536.0,91530.0,0.09288]
[1767522543468,0.01337238,91543.0,91530.0,0.09288]
[1767522543671,0.010929,91536.0,91524.0,9.8e-07]
[1767522543874,0.01093,91529.0,91525.0,0.09288]
[1767522544669,0.01093,91527.0,91524.0,9.8e-07]
[1767522545678,0.09667551,91536.0,91519.0,0.00954882]
[1767522545975,0.10744064,91535.0,91520.0,0.09292]
[1767522546170,0.10744064,91535.0,91521.0,0.09292]
[1767522546563,0.10744064,91535.0,91519.0,0.09292]
[1767522548373,0.01093,91527.0,91519.0,0.09292]
[1767522549871,0.01093,91527.0,91518.0,0.00016387]
[1767522550171,0.01093,91525.0,91519.0,0.09292]
[1767522550984,0.01093,91525.0,91518.0,0.00016387]
[1767522551173,0.01093,91525.0,91519.0,0.09292]
[1767522553585,0.01093,91525.0,91518.0,0.00016387]
[1767522554282,0.01093,91529.0,91518.0,0.00016387]
[1767522554587,0.09651164,91533.0,91518.0,0.00016387]
[1767522554588,0.01093,91527.0,91518.0,0.00016387]
[1767522555286,0.01093,91530.0,91518.0,0.00016387]
[1767522563692,0.01093,91532.0,91518.0,0.00016387]
[1767522563894,0.10744164,91532.0,91518.0,0.00016387]
[1767522565194,0.01093,91530.0,91518.0,0.00016387]
[1767522566590,0.01337238,91529.0,91518.0,8.7e-07]
[1767522566796,0.09651164,91524.0,91512.0,0.09292]
[1767522566994,0.09651164,91524.0,91507.0,0.94512]
[1767522567193,0.09651164,91524.0,91511.0,0.09292]
[1767522567686,0.010931,91518.0,91509.0,0.09292]
[1767522570285,0.010931,91520.0,91509.0,0.09292]
[1767522571086,0.010931,91520.0,91508.0,0.00016387]
[1767522571395,0.010931,91520.0,91508.0,0.09308387]
[1767522575094,0.09651164,91521.0,91508.0,0.09308387]
[1767522576592,0.09651164,91521.0,91508.0,0.00016387]
[1767522576794,0.010931,91520.0,91508.0,0.00016387]
[1767522576999,0.09651164,91521.0,91508.0,0.00016387]
[1767522577197,0.010932,91513.0,91499.0,0.00218583]
[1767522577396,0.010932,91510.0,91499.0,0.00218583]
[1767522577698,0.010932,91510.0,91492.0,0.0393112]
[1767522577699,0.010932,91510.0,91497.0,0.09292]
[1767522578293,0.010932,91510.0,91493.0,0.0393112]
[1767522578496,0.010932,91510.0,91494.0,1.03812]
[1767522578889,0.010932,91510.0,91493.0,0.0393112]
[1767522579094,0.010932,91510.0,91494.0,0.09292]
[1767522579296,0.010932,91508.0,91493.0,0.0283772]
[1767522579596,0.010932,91508.0,91494.0,0.09292]
[1767522580295,0.10429071,91511.0,91494.0,0.09292]
[1767522580797,0.010932,91509.0,91494.0,0.09292]
[1767522581500,0.12313707,91506.0,91492.0,0.00016387]
[1767522581701,0.02977836,91504.0,91492.0,0.00016387]
[1767522582005,0.010933,91502.0,91492.0,0.00016387]
[1767522582203,0.09335871,91503.0,91492.0,0.00016387]
[1767522582697,0.10429171,91503.0,91492.0,0.00016387]
[1767522582889,0.09335871,91503.0,91492.0,0.00016387]
[1767522585701,0.09335871,91503.0,91492.0,0.01109787]
[1767522587505,0.09335871,91503.0,91492.0,0.00016387]
[1767522587705,0.09335871,91503.0,91492.0,0.01109787]
[1767522587908,0.00016387,91513.0,91494.0,0.12316144]
[1767522588206,0.09292,91522.0,91508.0,0.0283772]
[1767522589307,0.09292,91522.0,91508.0,0.0393092]
[1767522590712,0.09292,91530.0,91510.0,0.09472533]
[1767522591011,0.09292,91530.0,91519.0,0.0283772]
[1767522591811,0.01093,91531.0,91519.0,0.0283772]
[1767522592202,0.09335871,91535.0,91520.0,0.09472533]
[1767522593206,0.09335871,91535.0,91521.0,0.010931]
[1767522593405,0.01109287,91537.0,91521.0,0.0393082]
[1767522594612,0.01109287,91537.0,91522.0,0.0283772]
[1767522595700,0.00016387,91537.0,91523.0,0.010931]
[1767522596510,0.00016387,91537.0,91528.0,0.0283772]
[1767522596698,0.09292,91540.0,91528.0,0.0283772]
[1767522596903,0.010928,91543.0,91530.0,0.09472533]
[1767522597105,0.010928,91543.0,91530.0,0.12310253]
[1767522597312,0.010929,91540.0,91530.0,0.12310253]
[1767522597617,0.010929,91541.0,91526.0,0.0283772]
[1767522599913,0.010929,91539.0,91526.0,0.0283772]
[1767522600114,0.02437376,91538.0,91526.0,0.0283772]
[1767522600314,0.010929,91536.0,91526.0,0.0283772]
[1767522601106,0.010929,91536.0,91520.0,0.13224546]
[1767522601401,0.09025762,91526.0,91517.0,0.09292]
[1767522601708,0.09025762,91526.0,91515.0,0.00016387]
[1767522602222,0.02524908,91531.0,91515.0,0.01109587]
[1767522602606,0.09025762,91532.0,91520.0,0.09472533]
[1767522603112,0.010929,91535.0,91520.0,0.09472533]
[1767522603917,0.103849,91538.0,91525.0,0.12131446]
[1767522604105,0.02436947,91537.0,91525.0,0.02658913]
[1767522604310,0.10134949,91541.0,91525.0,0.03751913]
[1767522604510,0.0243678,91540.0,91525.0,0.03751913]
[1767522604711,0.0243678,91539.0,91525.0,0.03751913]
[1767522604910,0.0243678,91538.0,91525.0,0.03751913]
[1767522605109,0.010929,91539.0,91525.0,0.02658913]
[1767522605309,0.02436687,91538.0,91525.0,0.02658913]
[1767522605510,0.010929,91537.0,91525.0,0.02658913]
[1767522606005,0.010929,91537.0,91522.0,0.03752013]
[1767522606200,0.010929,91537.0,91522.0,0.02658913]
[1767522606404,0.09025762,91537.0,91520.0,0.09472533]
[1767522606604,0.09025762,91534.0,91516.0,0.03752013]
[1767522606807,0.09025762,91534.0,91520.0,0.09472533]
[1767522607018,0.09025762,91534.0,91516.0,0.03752013]
[1767522607407,0.01093,91531.0,91517.0,0.09292]
[1767522607912,0.01093,91526.0,91515.0,0.00016387]
[1767522608113,0.01093,91526.0,91515.0,0.09308387]
[1767522608714,0.1155067,91528.0,91515.0,0.00016387]
[1767522608715,0.010931,91523.0,91515.0,0.00016387]
[1767522610021,0.01093,91526.0,91515.0,0.00016387]
[1767522610407,0.09472533,91540.0,91515.0,0.00016387]
[1767522610408,0.10118562,91543.0,91525.0,0.03751913]
[1767522610719,0.09025762,91543.0,91530.0,0.09472533]
[1767522611410,0.010928,91542.0,91530.0,0.09472533]
[1767522612013,0.010928,91542.0,91526.0,0.03751913]
[1767522613224,0.09042149,91541.0,91523.0,0.13044013]
[1767522614222,0.10135049,91541.0,91523.0,0.13044013]
[1767522615018,0.09042149,91541.0,91523.0,0.11950913]
[1767522615219,0.10118662,91536.0,91523.0,0.09292]
[1767522616522,0.09025762,91536.0,91523.0,0.09292]
[1767522618027,0.10118662,91536.0,91523.0,0.09292]
[1767522620822,0.00016387,91541.0,91524.0,0.02658913]
[1767522621023,0.02441965,91540.0,91531.0,0.02658913]
[1767522621225,0.02441965,91539.0,91531.0,0.02658913]
[1767522621423,0.02441965,91538.0,91531.0,0.02658913]
[1767522621724,0.00016387,91541.0,91531.0,0.03751913]
[1767522621915,0.02442227,91540.0,91531.0,0.03751913]
[1767522622110,0.00016387,91541.0,91533.0,0.02622151]
[1767522622314,0.010928,91548.0,91534.0,0.01529251]
[1767522622820,0.010928,91548.0,91533.0,0.010929]
[1767522622821,0.02524908,91545.0,91527.0,0.01503322]
[1767522623024,0.10118562,91543.0,91527.0,0.01093]
[1767522624425,0.09025762,91542.0,91524.0,0.02596322]
[1767522625012,0.1155067,91542.0,91524.0,0.02596322]
[1767522625421,0.010929,91540.0,91524.0,0.02596322]
[1767522625609,0.1155067,91542.0,91524.0,0.01503322]
[1767522626022,0.010929,91540.0,91525.0,0.01093]
[1767522626222,0.010929,91541.0,91526.0,0.01093]
[1767522626921,0.010929,91541.0,91527.0,0.09292]
[1767522627311,0.09025762,91538.0,91520.0,0.09472533]
[1767522627516,0.09025762,91538.0,91523.0,0.010931]
[1767522627826,0.09025762,91538.0,91524.0,0.01093]
[1767522628822,0.09025762,91538.0,91525.0,0.01093]
[1767522630428,0.09025762,91538.0,91521.0,0.09292]
[1767522631332,0.09025762,91538.0,91526.0,0.01093]
[1767522635333,0.09615265,91537.0,91526.0,0.01093]
[1767522635530,0.09615265,91535.0,91524.0,0.01093]
[1767522635729,0.02442115,91534.0,91524.0,0.01093]
[1767522635930,0.02442115,91533.0,91524.0,0.01093]
[1767522636137,0.02442115,91532.0,91521.0,0.09292]
[1767522636332,0.02442115,91531.0,91520.0,0.09472533]
[1767522636539,0.02442115,91530.0,91522.0,0.09292]
[1767522636728,0.02442115,91529.0,91522.0,0.09292]
[1767522636927,0.09615265,91535.0,91522.0,0.09292]
[1767522637132,0.02442135,91534.0,91522.0,0.09292]
[1767522637334,0.02442135,91533.0,91525.0,0.01093]
[1767522637537,0.02442135,91532.0,91525.0,0.01093]
[1767522637738,0.02442135,91531.0,91525.0,0.01093]
[1767522637940,0.02442135,91530.0,91525.0,0.01093]
[1767522638236,0.02442135,91529.0,91525.0,0.01093]
[1767522638438,0.09615265,91535.0,91525.0,0.01093]
[1767522638639,0.02442324,91534.0,91525.0,0.01093]
[1767522638827,0.02442324,91533.0,91525.0,0.01093]
[1767522639026,0.02442324,91532.0,91525.0,0.01093]
[1767522639226,0.02442324,91531.0,91525.0,0.01093]
[1767522639441,0.02442324,91530.0,91525.0,0.01093]
[1767522639640,0.02442324,91529.0,91525.0,0.01093]
[1767522639843,0.09615265,91535.0,91525.0,0.01093]
[1767522640142,0.02442527,91534.0,91525.0,0.01093]
[1767522640337,0.02442527,91533.0,91526.0,0.09292]
[1767522640528,0.02442527,91532.0,91526.0,0.09292]
[1767522640727,0.02442527,91531.0,91526.0,0.09292]
[1767522640926,0.02442527,91530.0,91526.0,0.09292]
[1767522641128,0.02442527,91529.0,91526.0,0.09292]
[1767522641330,0.02442527,91528.0,91526.0,0.09292]
[1767522641529,0.09615265,91535.0,91526.0,0.09292]
[1767522641729,0.024428,91534.0,91526.0,0.09292]
[1767522641942,0.024428,91533.0,91526.0,0.09292]
[1767522642144,0.09615265,91535.0,91526.0,0.09292]
[1767522642145,0.024428,91532.0,91526.0,0.09292]
[1767522642340,0.024428,91531.0,91526.0,0.09292]
[1767522642541,0.09615265,91535.0,91526.0,0.09292]
[1767522648353,0.09615265,91535.0,91522.0,0.010931]
[1767522648559,0.09615265,91535.0,91523.0,0.09292]
[1767522649358,0.09615265,91541.0,91523.0,0.09292]
[1767522650559,0.09615265,91541.0,91528.0,0.01093]
[1767522651152,0.09615265,91541.0,91523.0,0.10437189]
[1767522651546,0.010927,91552.0,91533.0,0.010929]
[1767522651751,0.10707965,91552.0,91536.0,0.010929]
[1767522652050,0.13151873,91551.0,91536.0,0.010929]
[1767522652251,0.09615265,91550.0,91536.0,0.010929]
[1767522653559,0.09615265,91550.0,91538.0,0.010929]
[1767522654557,0.02402239,91549.0,91538.0,0.010929]
[1767522654756,0.02402239,91548.0,91538.0,0.010929]
[1767522654958,0.02402239,91547.0,91538.0,0.010929]
[1767522655158,0.02402239,91546.0,91538.0,0.010929]
[1767522655354,0.09615265,91550.0,91538.0,0.010929]
[1767522655554,0.02401947,91549.0,91538.0,0.010929]
[1767522655754,0.02401947,91548.0,91538.0,0.010929]
[1767522655954,0.02401947,91547.0,91538.0,0.010929]
[1767522656153,0.02401947,91546.0,91538.0,0.010929]
[1767522656354,0.09615265,91550.0,91538.0,0.010929]
[1767522656556,0.02401686,91549.0,91538.0,0.010929]
[1767522656764,0.02401686,91548.0,91540.0,0.010928]
[1767522656962,0.02401686,91547.0,91540.0,0.010928]
[1767522657161,0.09615265,91550.0,91540.0,0.010928]
[1767522657162,0.02401686,91546.0,91540.0,0.010928]
[1767522657466,0.09615265,91550.0,91537.0,0.010929]
[1767522657657,0.02401467,91549.0,91537.0,0.010929]
[1767522657856,0.02401467,91548.0,91537.0,0.010929]
[1767522658057,0.02401467,91547.0,91537.0,0.010929]
[1767522658261,0.02401467,91546.0,91537.0,0.010929]
[1767522658462,0.09615265,91550.0,91538.0,0.010929]
[1767522658666,0.02401285,91549.0,91538.0,0.010929]
[1767522658865,0.02401285,91548.0,91538.0,0.010929]
[1767522659067,0.02401285,91547.0,91538.0,0.010929]
[1767522659265,0.02401285,91546.0,91538.0,0.010929]
[1767522659467,0.09615265,91550.0,91538.0,0.010929]
[1767522659668,0.02401132,91549.0,91538.0,0.010929]
[1767522659972,0.02401132,91548.0,91540.0,0.010929]
[1767522660169,0.02401132,91547.0,91540.0,0.010929]
[1767522660466,0.09596682,91553.0,91535.0,0.00961651]
[1767522660672,0.02401019,91552.0,91535.0,0.00961651]
[1767522660867,0.02401019,91551.0,91535.0,0.00961651]
[1767522661067,0.02401019,91550.0,91535.0,0.00961651]
[1767522661264,0.09596682,91553.0,91541.0,0.010928]
[1767522661467,0.02400813,91552.0,91541.0,0.010928]
[1767522661665,0.02400813,91551.0,91541.0,0.010928]
[1767522661866,0.09596682,91553.0,91540.0,0.010928]
[1767522662169,0.02400827,91552.0,91540.0,0.010928]
[1767522662371,0.02400827,91551.0,91540.0,0.010928]
[1767522662572,0.11751203,91553.0,91540.0,0.010928]
[1767522662770,0.11997352,91552.0,91540.0,0.010928]
[1767522662971,0.0240067,91551.0,91540.0,0.010928]
[1767522663174,0.09596682,91552.0,91540.0,0.010928]
[1767522663472,0.02400574,91551.0,91540.0,0.010928]
[1767522663665,0.09596682,91552.0,91535.0,0.00961651]
[1767522663865,0.02400541,91551.0,91539.0,0.010929]
[1767522664066,0.09596682,91552.0,91539.0,0.010929]
[1767522664375,0.02400467,91551.0,91539.0,0.010929]
[1767522664676,0.09596682,91552.0,91539.0,0.010929]
[1767522664874,0.02400439,91551.0,91539.0,0.010929]
[1767522665077,0.09596682,91552.0,91539.0,0.010929]
[1767522665374,0.02400382,91551.0,91539.0,0.010929]
[1767522665676,0.09596682,91552.0,91539.0,0.010929]
[1767522667576,0.09596682,91552.0,91541.0,0.010928]
[1767522668274,0.09596682,91552.0,91536.0,0.00752359]
[1767522668477,0.02154521,91557.0,91537.0,0.00752359]
[1767522668774,0.11996943,91556.0,91537.0,0.00752359]
[1767522668976,0.02400261,91555.0,91537.0,0.00752359]
[1767522669172,0.02400261,91554.0,91537.0,0.00752359]
[1767522669368,0.02400261,91553.0,91533.0,0.09308387]
[1767522669562,0.02154521,91553.0,91533.0,0.10037402]
[1767522669767,0.11751203,91553.0,91533.0,0.10037402]
[1767522669974,0.11751203,91553.0,91539.0,0.010929]
[1767522670177,0.11751203,91552.0,91539.0,0.010929]
[1767522670378,0.11751203,91552.0,91533.0,0.10037402]
[1767522671373,0.11751203,91552.0,91540.0,0.010928]
[1767522672673,0.11751203,91552.0,91533.0,0.10037402]
[1767522672674,0.11751203,91552.0,91542.0,0.010928]
[1767522672971,0.11751203,91552.0,91543.0,0.103848]
[1767522673377,0.11751203,91552.0,91543.0,0.09292]
[1767522674773,0.11751203,91552.0,91543.0,0.103848]
[1767522675878,0.02400656,91551.0,91543.0,0.103848]
[1767522676078,0.02400656,91550.0,91543.0,0.103848]
[1767522676281,0.02400656,91549.0,91543.0,0.103848]
[1767522676481,0.02400656,91548.0,91543.0,0.103848]
[1767522676676,0.09815122,91559.0,91543.0,0.09867401]
[1767522676881,0.02154521,91563.0,91543.0,0.09867401]
[1767522677474,0.02154521,91563.0,91551.0,0.010927]
[1767522678074,0.09292,91568.0,91544.0,0.02092985]
[1767522678478,0.09292,91568.0,91552.0,0.010927]
[1767522678678,0.07842239,91589.0,91548.0,0.09331641]
[1767522678884,0.09596682,91577.0,91557.0,0.02244565]
[1767522679079,0.09596682,91577.0,91561.0,0.010926]
[1767522679277,0.09596682,91577.0,91564.0,0.010926]
[1767522680187,0.02154521,91576.0,91564.0,0.010926]
[1767522680682,0.09596682,91577.0,91566.0,0.010925]
[1767522680882,0.02154521,91580.0,91568.0,0.010925]
[1767522681279,0.02154521,91580.0,91565.0,0.010926]
[1767522681586,0.02154521,91578.0,91562.0,0.010926]
[1767522682689,0.02154521,91577.0,91562.0,0.010926]
[1767522683081,0.02154521,91577.0,91564.0,0.010926]
[1767522684984,0.11751203,91576.0,91564.0,0.010926]
[1767522685591,0.11751203,91576.0,91561.0,0.103846]
[1767522685894,0.11751203,91576.0,91563.0,0.010926]
[1767522689897,0.11751203,91576.0,91565.0,0.010926]
[1767522692800,0.11751203,91576.0,91567.0,0.010925]
[1767522692997,0.09596682,91576.0,91567.0,0.010925]
[1767522693297,0.0220805,91580.0,91568.0,0.010925]
[1767522693597,0.010923,91585.0,91562.0,0.11710063]
[1767522693793,0.02379201,91584.0,91563.0,0.11710063]
[1767522694098,0.02379201,91583.0,91563.0,0.11710063]
[1767522694302,0.02379201,91582.0,91569.0,0.010925]
[1767522694596,0.010923,91585.0,91569.0,0.010925]
[1767522694597,0.02379201,91581.0,91569.0,0.010925]
[1767522694796,0.010923,91585.0,91569.0,0.010925]
[1767522695094,0.02379245,91584.0,91563.0,0.0953025]
[1767522695299,0.11045896,91592.0,91575.0,0.010924]
[1767522695497,0.09953696,91588.0,91575.0,0.103804]
[1767522695697,0.02379201,91587.0,91576.0,0.010924]
[1767522696008,0.0220805,91587.0,91576.0,0.010924]
[1767522697299,0.0220805,91587.0,91578.0,0.010924]
[1767522697497,0.0220805,91587.0,91576.0,0.010924]
[1767522701487,0.0220805,91587.0,91575.0,0.09288]
[1767522701687,0.0220805,91591.0,91580.0,0.010924]
[1767522702098,0.0220805,91591.0,91582.0,0.010924]
[1767522705198,0.0220805,91591.0,91580.0,0.010924]
[1767522706498,0.0220805,91591.0,91580.0,0.10544102]
[1767522707108,0.0220805,91591.0,91581.0,0.010924]
[1767522710309,0.09953696,91594.0,91581.0,0.010924]
[1767522710498,0.12161746,91594.0,91581.0,0.010924]
[1767522710705,0.12161746,91594.0,91583.0,0.010923]
[1767522711307,0.0220805,91598.0,91583.0,0.010923]
[1767522711608,0.0220805,91596.0,91583.0,0.010923]
[1767522712107,0.0220805,91596.0,91584.0,0.010923]
[1767522712304,0.12161746,91600.0,91580.0,0.09451702]
[1767522712511,0.02371389,91599.0,91581.0,0.11710063]
[1767522712809,0.02371389,91598.0,91589.0,0.010923]
[1767522713006,0.09288,91602.0,91589.0,0.010923]
[1767522713207,0.02371186,91601.0,91591.0,0.010922]
[1767522713402,0.02371186,91600.0,91591.0,0.010922]
[1767522713600,0.0220805,91602.0,91591.0,0.010922]
[1767522713800,0.02371103,91601.0,91591.0,0.010922]
[1767522714004,0.02371103,91600.0,91591.0,0.010922]
[1767522714314,0.0220805,91602.0,91591.0,0.010922]
[1767522715005,0.0220805,91602.0,91588.0,0.09451702]
[1767522715208,0.0220805,91605.0,91591.0,0.010922]
[1767522715409,0.0237052,91604.0,91591.0,0.010922]
[1767522715610,0.0220805,91603.0,91592.0,0.010922]
[1767522716013,0.0220805,91599.0,91590.0,0.09451702]
[1767522716307,0.0220805,91599.0,91587.0,0.09288]
[1767522716499,0.0220805,91599.0,91589.0,0.010923]
[1767522717214,0.0220805,91597.0,91576.0,0.00016378]
[1767522717404,0.0220805,91587.0,91577.0,0.09288]
[1767522717708,0.0220805,91587.0,91577.0,0.00102267]
[1767522721610,0.02384948,91594.0,91577.0,0.09553969]
[1767522721811,0.02384948,91594.0,91577.0,0.09102438]
[1767522722016,0.02384948,91597.0,91580.0,0.09451702]
[1767522722216,0.03477048,91605.0,91587.0,0.19544173]
[1767522722514,0.02384948,91602.0,91590.0,0.09451702]
[1767522722919,0.02384948,91606.0,91590.0,0.09451702]
[1767522723315,0.09385806,91606.0,91592.0,0.010922]
[1767522723622,0.02384948,91603.0,91592.0,0.010922]
[1767522723917,0.02384948,91609.0,91590.0,0.09451702]
[1767522724113,0.02384948,91607.0,91592.0,0.010922]
[1767522724312,0.02384948,91607.0,91588.0,0.11471]
[1767522724313,0.02384948,91601.0,91588.0,0.11471]
[1767522724513,0.02384948,91601.0,91593.0,0.010922]
[1767522724713,0.02384948,91601.0,91594.0,0.010922]
[1767522725415,0.02384948,91601.0,91591.0,0.010922]
[1767522725821,0.02381526,91600.0,91591.0,0.010922]
[1767522726022,0.04766474,91599.0,91591.0,0.010922]
[1767522726218,0.02384948,91599.0,91591.0,0.010922]
[1767522726721,0.02384948,91599.0,91592.0,0.010922]
[1767522727022,0.02384948,91599.0,91589.0,0.010923]
[1767522727214,0.02381633,91598.0,91589.0,0.010923]
[1767522727521,0.02384948,91599.0,91591.0,0.010922]
[1767522727819,0.02381623,91598.0,91591.0,0.010922]
[1767522728016,0.02384948,91599.0,91591.0,0.010922]
[1767522728216,0.04766702,91598.0,91588.0,0.11471]
[1767522728418,0.02384948,91598.0,91588.0,0.11471]
[1767522729314,0.02384948,91598.0,91589.0,0.010923]
[1767522729619,0.02384948,91598.0,91590.0,0.010923]
[1767522730125,0.02382046,91597.0,91590.0,0.010923]
[1767522730324,0.02384948,91598.0,91590.0,0.010923]
[1767522730620,0.02382022,91597.0,91590.0,0.010923]
[1767522730918,0.02384948,91598.0,91580.0,0.09451702]
[1767522731120,0.02384948,91598.0,91586.0,0.09284]
[1767522731921,0.02384948,91598.0,91587.0,0.010923]
[1767522733531,0.02384948,91598.0,91580.0,0.09451702]
[1767522733722,0.02384948,91598.0,91581.0,0.09284]
[1767522734223,0.04767885,91597.0,91586.0,0.010923]
[1767522734418,0.02384948,91597.0,91586.0,0.010923]
[1767522734914,0.02384948,91597.0,91584.0,0.103763]
[1767522736025,0.02384948,91597.0,91585.0,0.010923]
[1767522737332,0.02384948,91597.0,91587.0,0.010923]
[1767522738531,0.02384948,91597.0,91584.0,0.09284]
[1767522738723,0.02384948,91597.0,91587.0,0.010923]
[1767522742632,0.02384948,91597.0,91584.0,0.09284]
[1767522742828,0.02384948,91602.0,91584.0,0.09284]
[1767522743622,0.02384948,91602.0,91589.0,0.010923]
[1767522744230,0.03477048,91605.0,91591.0,0.010923]
[1767522744437,0.03477048,91605.0,91590.0,0.09451702]
[1767522744438,0.04763532,91604.0,91593.0,0.010922]
[1767522744733,0.04763532,91603.0,91593.0,0.010922]
[1767522745036,0.02384948,91603.0,91591.0,0.010922]
[1767522745629,0.02384948,91603.0,91594.0,0.010922]
[1767522745837,0.02384948,91603.0,91591.0,0.010922]
[1767522746534,0.02384948,91603.0,91593.0,0.010922]
[1767522747133,0.02384948,91603.0,91590.0,0.09451702]
[1767522747930,0.02384948,91603.0,91594.0,0.010922]
[1767522749034,0.02384948,91618.0,91597.0,0.09000171]
[1767522749236,0.02385811,91617.0,91601.0,0.09000171]
[1767522749438,0.02385811,91616.0,91601.0,0.10092271]
[1767522749734,0.02384948,91618.0,91601.0,0.09000171]
[1767522749735,0.02385811,91615.0,91601.0,0.09000171]
[1767522750040,0.03477811,91614.0,91601.0,0.09000171]
[1767522750335,0.02385811,91613.0,91601.0,0.09000171]
[1767522750537,0.01092,91614.0,91601.0,0.09000171]
[1767522750734,0.02384821,91613.0,91601.0,0.09000171]
[1767522750938,0.01092,91614.0,91601.0,0.09000171]
[1767522752332,0.01092,91614.0,91602.0,0.010921]
[1767522752529,0.02384142,91613.0,91602.0,0.010921]
[1767522752835,0.01092,91614.0,91602.0,0.010921]
[1767522753028,0.02384142,91613.0,91602.0,0.010921]
[1767522753236,0.01092,91614.0,91602.0,0.010921]
[1767522753428,0.02383808,91613.0,91602.0,0.010921]
[1767522753630,0.01092,91614.0,91602.0,0.010921]
[1767522753831,0.02383808,91613.0,91604.0,0.010921]
[1767522754031,0.01092,91617.0,91601.0,0.10092271]
[1767522754231,0.02383808,91616.0,91601.0,0.10092271]
[1767522754430,0.02383808,91615.0,91601.0,0.10092271]
[1767522754634,0.02383808,91614.0,91603.0,0.010921]
[1767522754834,0.02383808,91614.0,91601.0,0.09000171]
[1767522754835,0.02383808,91613.0,91601.0,0.09000171]
[1767522755033,0.01092,91612.0,91601.0,0.09000171]
[1767522755230,0.01092,91615.0,91602.0,0.010921]
[1767522755539,0.02383298,91614.0,91604.0,0.10453322]
[1767522755741,0.01310197,91619.0,91606.0,0.010921]
[1767522755941,0.02205732,91617.0,91600.0,0.09451702]